fUST/lending_fUST_20240721
["ID","MTS","AMOUNT","RATE_DAILY","PERIOD"]
[332831397,1721561443316,-500.0,0.00013698,2]
[332831398,1721561443326,-500.0,0.00013698,2]
[332831399,1721561443338,-500.0,0.00013698,2]
[332831400,1721561443349,-500.0,0.00013698,2]
[332831401,1721561443360,-500.0,0.00013698,2]
[332831402,1721561443371,-151.0,0.00013698,2]
[332831403,1721561443382,-500.0,0.00013698,2]
[332831404,1721561443393,-500.0,0.00013698,2]
[332831405,1721561443404,-500.0,0.00013698,2]
[332831406,1721561443413,-500.0,0.00013698,2]
[332831407,1721561443423,-500.0,0.00013698,2]
[332831408,1721561443433,-500.0,0.00013698,2]
[332831409,1721561443443,-500.0,0.00013698,2]
[332831410,1721561443453,-530.31,0.00013698,2]
[332831411,1721561443463,-500.0,0.00013698,2]
[332831412,1721561443472,-500.0,0.00013698,2]
[332831413,1721561443482,-500.05,0.00013698,2]
[332831414,1721561443491,-500.0,0.00013698,2]
[332831416,1721561443501,-500.0,0.00013698,2]
[332831418,1721561443511,-500.0,0.00013698,2]
[332831419,1721561443521,-500.0,0.00013698,2]
[332831420,1721561443531,-500.0,0.00013698,2]
[332831421,1721561443540,-508.74971259,0.00013698,2]
[332831422,1721561443549,-500.0,0.00013698,2]
[332831423,1721561443559,-151.0,0.00013698,2]
[332831424,1721561443569,-500.0,0.00013698,2]
[332831425,1721561443579,-502.0283174,0.00013698,2]
[332831426,1721561443588,-500.0,0.00013698,2]
[332831427,1721561443597,-1514.95,0.00013698,2]
[332831428,1721561443607,-500.0,0.00013698,2]
[332831429,1721561443617,-500.0,0.00013698,2]
[332831430,1721561443627,-500.0,0.00013698,2]
[332831431,1721561443636,-500.0,0.00013698,2]
[332831432,1721561443646,-500.0,0.00013698,2]
[332831433,1721561443657,-500.0,0.00013698,2]
[332831434,1721561443667,-2050.61,0.00013698,2]
[332831435,1721561443678,-500.0,0.00013698,2]
[332831436,1721561443688,-500.0,0.00013698,2]
[332831437,1721561443698,-500.0,0.00013698,2]
[332831438,1721561443708,-500.0,0.00013698,2]
[332831439,1721561443718,-500.0,0.00013698,2]
[332831440,1721561443728,-500.0,0.00013698,2]
[332831441,1721561443742,-500.0,0.00013698,2]
[332831442,1721561443752,-500.0,0.00013698,2]
[332831443,1721561443761,-500.0,0.00013698,2]
[332831444,1721561443771,-500.0,0.00013698,2]
[332831445,1721561443783,-500.0,0.00013698,2]
[332831446,1721561443792,-614.78433015,0.00013698,2]
[332831447,1721561443803,-607.33,0.00013698,2]
[332831448,1721561443814,-1445.42,0.00013698,2]
[332831449,1721561443823,-501.99600103,0.00013698,2]
[332831450,1721561443834,-454.66743399,0.00013698,2]
[332831451,1721561443843,-500.0,0.00013698,2]
[332831452,1721561443853,-151.0,0.00013698,2]
[332831453,1721561443864,-500.0,0.00013698,2]
[332831454,1721561443874,-500.0,0.00013698,2]
[332831455,1721561443884,-706.66,0.00013698,2]
[332831456,1721561443895,-151.0,0.00013698,2]
[332831457,1721561443905,-500.0,0.00013698,2]
[332831458,1721561443915,-500.0,0.00013698,2]
[332831459,1721561443925,-500.0,0.00013698,2]
[332831460,1721561443935,-500.0,0.00013698,2]
[332831461,1721561443945,-500.0,0.00013698,2]
[332831462,1721561443955,-500.0,0.00013698,2]
[332831463,1721561443965,-500.0,0.00013698,2]
[332831464,1721561443975,-500.0,0.00013698,2]
[332831465,1721561443985,-181.62960455,0.00013698,2]
[332831466,1721561443994,-500.0,0.00013698,2]
[332831467,1721561444004,-500.0,0.00013698,2]
[332831468,1721561444014,-1537.34,0.00013698,2]
[332831469,1721561444023,-500.0,0.00013698,2]
[332831470,1721561444033,-500.0,0.00013698,2]
[332831471,1721561444043,-500.0,0.00013698,2]
[332831472,1721561444054,-500.0,0.00013698,2]
[332831473,1721561444064,-525.86400659,0.00013698,2]
[332831474,1721561444075,-713.61,0.00013698,2]
[332831475,1721561444086,-500.0,0.00013698,2]
[332831476,1721561444095,-814.53,0.00013698,2]
[332831477,1721561444105,-500.0,0.00013698,2]
[332831478,1721561444114,-500.0,0.00013698,2]
[332831479,1721561444123,-500.0,0.00013698,2]
[332831480,1721561444133,-684.13,0.00013698,2]
[332831481,1721561444143,-500.0,0.00013698,2]
[332831482,1721561444152,-500.0,0.00013698,2]
[332831483,1721561444165,-500.0,0.00013698,2]
[332831484,1721561444174,-500.0,0.00013698,2]
[332831485,1721561444183,-151.0,0.00013698,2]
[332831486,1721561444193,-500.0,0.00013698,2]
[332831487,1721561444203,-504.28120277,0.00013698,2]
[332831488,1721561444212,-500.0,0.00013698,2]
[332831489,1721561444222,-500.0,0.00013698,2]
[332831490,1721561444232,-500.0,0.00013698,2]
[332831491,1721561444241,-500.0,0.00013698,2]
[332831492,1721561444251,-500.99256661,0.00013698,2]
[332831493,1721561444260,-513.01851565,0.00013698,2]
[332831494,1721561444269,-500.0,0.00013698,2]
[332831495,1721561444278,-500.0,0.00013698,2]
[332831496,1721561444287,-383.27071003,0.00013698,2]
[332831497,1721561444296,-507.11998073,0.00013698,2]
[332831498,1721561444305,-500.0,0.00013698,2]
[332831499,1721561444314,-500.0,0.00013698,2]
[332831500,1721561444324,-500.0,0.00013698,2]
[332831501,1721561444334,-500.0,0.00013698,2]
[332831502,1721561444343,-500.0,0.00013698,2]
[332831503,1721561444352,-723.97,0.00013698,2]
[332831504,1721561444362,-824.78,0.00013698,2]
[332831505,1721561444370,-390.73947296,0.00013698,2]
[332831506,1721561444379,-540.85,0.00013698,2]
[332831507,1721561444388,-500.0,0.00013698,2]
[332831508,1721561444397,-500.0,0.00013698,2]
[332831509,1721561444409,-576.13,0.00013698,2]
[332831510,1721561444418,-500.0,0.00013698,2]
[332831511,1721561444427,-500.0,0.00013698,2]
[332831512,1721561444436,-500.0,0.00013698,2]
[332831513,1721561444450,-1033.97,0.00013698,2]
[332831514,1721561444459,-500.0,0.00013698,2]
[332831515,1721561444468,-500.0,0.00013698,2]
[332831516,1721561444478,-503.40828399,0.00013698,2]
[332831517,1721561444487,-500.0,0.00013698,2]
[332831518,1721561444496,-3063.51,0.00013698,2]
[332831519,1721561444505,-500.0,0.00013698,2]
[332831520,1721561444515,-500.0,0.00013698,2]
[332831521,1721561444524,-500.0,0.00013698,2]
[332831522,1721561444533,-500.0,0.00013698,2]
[332831523,1721561444543,-500.0,0.00013698,2]
[332831524,1721561444552,-658.36,0.00013698,2]
[332831525,1721561444561,-500.0,0.00013698,2]
[332831526,1721561444570,-500.0,0.00013698,2]
[332831527,1721561444580,-1153.93,0.00013698,2]
[332831528,1721561444589,-500.0,0.00013698,2]
[332831529,1721561444598,-500.0,0.00013698,2]
[332831530,1721561444607,-500.0,0.00013698,2]
[332831531,1721561444617,-500.0,0.00013698,2]
[332831532,1721561444626,-500.0,0.00013698,2]
[332831533,1721561444636,-500.0,0.00013698,2]
[332831534,1721561444646,-500.0,0.00013698,2]
[332831535,1721561444656,-515.50555293,0.00013698,2]
[332831536,1721561444666,-500.0,0.00013698,2]
[332831537,1721561444675,-500.0,0.00013698,2]
[332831538,1721561444684,-500.0,0.00013698,2]
[332831539,1721561444693,-500.0,0.00013698,2]
[332831540,1721561444702,-500.0,0.00013698,2]
[332831541,1721561444711,-687.94,0.00013698,2]
[332831542,1721561444721,-500.0,0.00013698,2]
[332831543,1721561444730,-500.0,0.00013698,2]
[332831544,1721561444739,-500.0,0.00013698,2]
[332831545,1721561444749,-500.0,0.00013698,2]
[332831546,1721561444759,-500.0,0.00013698,2]
[332831547,1721561444769,-500.0,0.00013698,2]
[332831548,1721561444966,-500.0,0.00013698,2]
[332831549,1721561444976,-500.0,0.00013698,2]
[332831550,1721561444986,-500.0,0.00013698,2]
[332831551,1721561444995,-151.0,0.00013698,2]
[332831552,1721561445004,-500.0,0.00013698,2]
[332831553,1721561445014,-500.0,0.00013698,2]
[332831554,1721561445023,-500.0,0.00013698,2]
[332831555,1721561445032,-500.0,0.00013698,2]
[332831556,1721561445042,-338.11479254,0.00013698,2]
[332831557,1721561445052,-500.0,0.00013698,2]
[332831558,1721561445061,-500.0,0.00013698,2]
[332831559,1721561445070,-500.0,0.00013698,2]
[332831560,1721561445079,-500.0,0.00013698,2]
[332831561,1721561445089,-32.93430981,0.00013698,2]
[332831563,1721561445845,-467.06569019,0.00013698,2]
[332831564,1721561445856,-500.0,0.00013698,2]
[332831565,1721561445866,-592.72339652,0.00013698,2]
[332831566,1721561445876,-500.0,0.00013698,2]
[332831567,1721561445886,-500.0,0.00013698,2]
[332831568,1721561445896,-526.74029633,0.00013698,2]
[332831569,1721561445905,-569.12686434,0.00013698,2]
[332831570,1721561445915,-528.98572719,0.00013698,2]
[332831571,1721561445924,-782.57,0.00013698,2]
[332831572,1721561445933,-503.71708603,0.00013698,2]
[332831573,1721561445943,-1377.74,0.00013698,2]
[332831574,1721561445952,-500.0,0.00013698,2]
[332831575,1721561445961,-500.0,0.00013698,2]
[332831576,1721561445970,-500.0,0.00013698,2]
[332831577,1721561445979,-500.0,0.00013698,2]
[332831578,1721561445989,-500.0,0.00013698,2]
[332831579,1721561445998,-500.0,0.00013698,2]
[332831580,1721561446007,-500.0,0.00013698,2]
[332831581,1721561446017,-500.0,0.00013698,2]
[332831582,1721561446027,-500.0,0.00013698,2]
[332831583,1721561446036,-500.0,0.00013698,2]
[332831584,1721561446045,-500.0,0.00013698,2]
[332831585,1721561446055,-280.05291229,0.00013698,2]
[332831586,1721561446064,-536.52048978,0.00013698,2]
[332831587,1721561446073,-500.0,0.00013698,2]
[332831588,1721561446082,-500.0,0.00013698,2]
[332831589,1721561446092,-500.0,0.00013698,2]
[332831590,1721561446101,-500.0,0.00013698,2]
[332831591,1721561446110,-500.0,0.00013698,2]
[332831592,1721561446119,-151.0,0.00013698,2]
[332831593,1721561446129,-500.0,0.00013698,2]
[332831594,1721561446140,-576.68,0.00013698,2]
[332831595,1721561446150,-778.26,0.00013698,2]
[332831596,1721561446160,-500.0,0.00013698,2]
[332831597,1721561446171,-500.0,0.00013698,2]
[332831598,1721561446182,-500.0,0.00013698,2]
[332831599,1721561446193,-500.0,0.00013698,2]
[332831600,1721561446204,-500.0,0.00013698,2]
[332831601,1721561446213,-500.0,0.00013698,2]
[332831602,1721561446223,-500.0,0.00013698,2]
[332831603,1721561446233,-500.0,0.00013698,2]
[332831604,1721561446242,-500.0,0.00013698,2]
[332831605,1721561446251,-500.0,0.00013698,2]
[332831606,1721561446260,-524.08738104,0.00013698,2]
[332831607,1721561446272,-580.8537819,0.00013698,2]
[332831608,1721561446282,-151.0,0.00013698,2]
[332831609,1721561446292,-926.19,0.00013698,2]
[332831610,1721561446302,-500.0,0.00013698,2]
[332831611,1721561446311,-1295.53,0.00013698,2]
[332831612,1721561446322,-732.8,0.00013698,2]
[332831613,1721561446332,-500.0,0.00013698,2]
[332831614,1721561446343,-500.0,0.00013698,2]
[332831615,1721561446353,-1140.04,0.00013698,2]
[332831616,1721561446363,-1795.0,0.00013698,2]
[332831617,1721561446373,-500.0,0.00013698,2]
[332831618,1721561446382,-747.6,0.00013698,2]
[332831619,1721561446392,-500.0,0.00013698,2]
[332831620,1721561446403,-333.58264193,0.00013698,2]
[332831621,1721561446414,-2206.18,0.00013698,2]
[332831622,1721561446423,-2407.13,0.00013698,2]
[332831623,1721561446434,-500.0,0.00013698,2]
[332831624,1721561446445,-1373.71,0.00013698,2]
[332831625,1721561446458,-500.0,0.00013698,2]
[332831626,1721561446469,-583.59,0.00013698,2]
[332831627,1721561446481,-1390.97,0.00013698,2]
[332831628,1721561446491,-534.80916439,0.00013698,2]
[332831629,1721561446501,-500.0,0.00013698,2]
[332831630,1721561446512,-500.0,0.00013698,2]
[332831631,1721561446522,-500.0,0.00013698,2]
[332831632,1721561446533,-500.0,0.00013698,2]
[332831633,1721561446543,-500.0,0.00013698,2]
[332831634,1721561446553,-500.0,0.00013698,2]
[332831635,1721561446563,-537.5234073,0.00013698,2]
[332831636,1721561446572,-500.0,0.00013698,2]
[332831637,1721561446583,-500.0,0.00013698,2]
[332831638,1721561446593,-500.0,0.00013698,2]
[332831639,1721561446604,-500.0,0.00013698,2]
[332831640,1721561446614,-2026.06,0.00013698,2]
[332831641,1721561446623,-506.78,0.00013698,2]
[332831642,1721561446632,-732.65,0.00013698,2]
[332831643,1721561446641,-240.836545,0.00013698,2]
[332831644,1721561446651,-500.0,0.00013698,2]
[332831645,1721561446662,-240.836545,0.00013698,2]
[332831646,1721561446672,-500.0,0.00013698,2]
[332831647,1721561446681,-801.15,0.00013698,2]
[332831648,1721561446691,-151.0,0.00013698,2]
[332831649,1721561446700,-500.0,0.00013698,2]
[332831650,1721561446710,-609.59945594,0.00013698,2]
[332831651,1721561446719,-500.0,0.00013698,2]
[332831652,1721561446729,-500.0,0.00013698,2]
[332831653,1721561446744,-500.0,0.00013698,2]
[332831654,1721561446754,-500.0,0.00013698,2]
[332831655,1721561446763,-665.99,0.00013698,2]
[332831656,1721561446773,-1257.11,0.00013698,2]
[332831657,1721561446782,-546.95,0.00013698,2]
[332831658,1721561446791,-151.0,0.00013698,2]
[332831659,1721561446801,-665.99,0.00013698,2]
[332831660,1721561446811,-665.99,0.00013698,2]
[332831661,1721561446820,-928.389055,0.00013698,2]
[332831662,1721561446830,-665.99,0.00013698,2]
[332831663,1721561446839,-665.99,0.00013698,2]
[332831664,1721561446849,-665.99,0.00013698,2]
[332831665,1721561446858,-665.99,0.00013698,2]
[332831666,1721561446867,-665.99,0.00013698,2]
[332831667,1721561446877,-500.0,0.00013698,2]
[332831668,1721561446886,-665.99,0.00013698,2]
[332831669,1721561446896,-665.99,0.00013698,2]
[332831670,1721561446906,-665.99,0.00013698,2]
[332831671,1721561446916,-665.99,0.00013698,2]
[332831672,1721561446925,-665.99,0.00013698,2]
[332831673,1721561446935,-665.99,0.00013698,2]
[332831674,1721561446944,-665.99,0.00013698,2]
[332831675,1721561446954,-928.389055,0.00013698,2]
[332831676,1721561446964,-665.99,0.00013698,2]
[332831677,1721561446974,-665.99,0.00013698,2]
[332831678,1721561446983,-21.80928629,0.00013698,2]
[332839211,1721562632363,-446.37646929,9.605e-05,2]
[332839213,1721562632373,-635.90661376,9.999e-05,2]
[332839215,1721562632384,-155.70429949,9.999e-05,2]
[332839217,1721562632394,-308.02203834,9.999e-05,2]
[332839219,1721562632403,-300.0,0.0001227,2]
[332839221,1721562632413,-10154.44452012,0.00012271,2]
[332839267,1721562638419,-273.37336231,9.9e-05,2]
[332839268,1721562638429,-199.83663824,0.00012271,2]
[332839307,1721562640950,-14545.71884164,0.00012271,2]
[332839308,1721562640960,-25128.53366357,0.00013,2]
[332839309,1721562640970,-367.35615468,0.00013519,2]
[332839310,1721562640980,-5304.19710114,0.00013536,2]
[332839311,1721562640989,-270.6051927,0.00013561,2]
[332839312,1721562640998,-847.8521847,0.00013598,2]
[332839313,1721562641007,-277.71732761,0.00013598,2]
[332839314,1721562641017,-150.59952781,0.0001362,2]
[332839315,1721562641026,-620.00059883,0.0001365,2]
[332839316,1721562641036,-277.7173276,0.00013667,2]
[332839317,1721562641046,-58393.00251083,0.00013688,2]
[332839345,1721562646547,-273.37336231,9.9e-05,2]
[332839346,1721562646559,-5915.69210842,0.00013688,2]
[332839356,1721563288707,198.95356274,0.00025,120]
[332839392,1721563832773,-447.54582446,9.226e-05,2]
[332839393,1721563832784,-447.54582446,9.701e-05,2]
[332839394,1721563832793,-300.0,9.998e-05,2]
[332839395,1721563832803,-300.0,9.998e-05,2]
[332839396,1721563832813,-530.20355034,9.999e-05,2]
[332839397,1721563832823,-156.39383641,9.999e-05,2]
[332839398,1721563832832,-155.76257987,9.999e-05,2]
[332839399,1721563832841,-155.80080012,9.999e-05,2]
[332839400,1721563832851,-257.98438268,9.999e-05,2]
[332839401,1721563832860,-154.86617689,9.999e-05,2]
[332839403,1721563832869,-599.33883006,9.999e-05,2]
[332839405,1721563832878,-217.28627782,9.999e-05,2]
[332839407,1721563832887,-155.70429949,9.999e-05,2]
[332839409,1721563832897,-175.0,0.00010291,2]
[332839411,1721563832906,-175.0,0.00010319,2]
[332839413,1721563832915,-175.0,0.00010347,2]
[332839415,1721563832924,-175.0,0.00010376,2]
[332839417,1721563832933,-175.0,0.00010404,2]
[332839419,1721563832942,-175.0,0.00010432,2]
[332839421,1721563832951,-175.0,0.0001046,2]
[332839423,1721563832961,-175.0,0.00010488,2]
[332839425,1721563832970,-175.0,0.00010517,2]
[332839427,1721563832979,-175.0,0.00010545,2]
[332839429,1721563832989,-24900.0,0.00010557,2]
[332839430,1721563832998,-175.0,0.00010573,2]
[332839432,1721563833007,-175.0,0.00010601,2]
[332839434,1721563833018,-175.0,0.00010629,2]
[332839436,1721563833028,-175.0,0.00010658,2]
[332839438,1721563833038,-175.0,0.00010686,2]
[332839441,1721563833049,-175.0,0.00010714,2]
[332839443,1721563833060,-175.0,0.00010742,2]
[332839445,1721563833070,-175.0,0.00010771,2]
[332839447,1721563833079,-175.0,0.00010799,2]
[332839449,1721563833090,-175.0,0.00010827,2]
[332839451,1721563833100,-420.0,0.00010998,2]
[332839453,1721563833110,-178.0,0.00010998,2]
[332839455,1721563833119,-587.0,0.00012098,2]
[332839457,1721563833129,-153.0,0.00012641,2]
[332839459,1721563833139,-153.0,0.00012778,2]
[332839461,1721563833148,-153.0,0.00012841,2]
[332839463,1721563833158,-153.0,0.00012878,2]
[332839465,1721563833167,-153.0,0.00012941,2]
[332839467,1721563833177,-153.0,0.00012978,2]
[332839469,1721563833187,-153.0,0.00012978,2]
[332839471,1721563833197,-25128.53366357,0.00013,2]
[332839473,1721563833206,-2797.984387,0.00013,2]
[332839475,1721563833216,-170.8244024,0.00013078,2]
[332839477,1721563833226,-153.0,0.00013078,2]
[332839479,1721563833236,-153.0,0.00013078,2]
[332839481,1721563833246,-153.0,0.00013078,2]
[332839483,1721563833255,-367.35615468,0.00013232,2]
[332839484,1721563833264,-153.0,0.00013233,2]
[332839486,1721563833274,-153.0,0.00013233,2]
[332839488,1721563833283,-153.0,0.00013233,2]
[332839490,1721563833293,-153.0,0.00013233,2]
[332839492,1721563833302,-150.59952781,0.00013283,2]
[332839494,1721563833314,-153.0,0.000133,2]
[332839496,1721563833324,-153.0,0.000133,2]
[332839498,1721563833335,-5304.19710114,0.00013388,2]
[332839500,1721563833344,-153.0,0.000134,2]
[332839502,1721563833353,-5000.0,0.000135,2]
[332839504,1721563833363,-153.0,0.000135,2]
[332839506,1721563833374,-153.0,0.000135,2]
[332839508,1721563833383,-150.0,0.000135,2]
[332839510,1721563833393,-270.6051927,0.00013561,2]
[332839512,1721563833403,-847.8521847,0.00013598,2]
[332839514,1721563833412,-428.09278386,0.00013598,2]
[332839516,1721563833421,-153.0,0.000136,2]
[332839518,1721563833430,-153.0,0.000136,2]
[332839520,1721563833440,-153.0,0.000136,2]
[332839522,1721563833449,-428.09278383,0.00013667,2]
[332839524,1721563833459,-2393.85148885,0.00013688,2]
[332839548,1721563838632,-273.37336231,9.9e-05,2]
[332839549,1721563838643,-330374.36540415,0.00013688,2]
[332839550,1721563838655,-644.18071371,0.00013698,2]
[332839551,1721563838665,-665.99,0.00013698,2]
[332839552,1721563838675,-665.99,0.00013698,2]
[332839553,1721563838686,-665.99,0.00013698,2]
[332839554,1721563838695,-665.99,0.00013698,2]
[332839555,1721563838704,-665.99,0.00013698,2]
[332839556,1721563838714,-666.01,0.00013698,2]
[332839557,1721563838723,-5327.92,0.00013698,2]
[332839558,1721563838732,-5327.92,0.00013698,2]
[332839559,1721563838741,-5327.92,0.00013698,2]
[332839560,1721563838750,-5327.92,0.00013698,2]
[332839561,1721563838760,-5327.92,0.00013698,2]
[332839562,1721563838769,-5327.92,0.00013698,2]
[332839563,1721563838778,-5327.92,0.00013698,2]
[332839564,1721563838787,-5327.92,0.00013698,2]
[332839565,1721563838796,-5327.92,0.00013698,2]
[332839566,1721563838807,-5327.92,0.00013698,2]
[332839567,1721563838816,-5327.92,0.00013698,2]
[332839568,1721563838825,-5327.92,0.00013698,2]
[332839569,1721563838835,-5327.92,0.00013698,2]
[332839570,1721563838844,-5327.92,0.00013698,2]
[332839571,1721563838854,-5327.92,0.00013698,2]
[332839572,1721563838863,-5327.92,0.00013698,2]
[332839573,1721563838873,-5327.92,0.00013698,2]
[332839574,1721563838884,-5327.92,0.00013698,2]
[332839575,1721563838894,-5327.92,0.00013698,2]
[332839576,1721563838905,-5327.92,0.00013698,2]
[332839577,1721563838916,-5327.92,0.00013698,2]
[332839578,1721563838925,-5327.92,0.00013698,2]
[332839579,1721563838935,-5327.92,0.00013698,2]
[332839580,1721563838947,-5328.08,0.00013698,2]
[332839581,1721563838958,-500.0,0.00013698,2]
[332839582,1721563838970,-363.39105369,0.00013698,2]
[332839583,1721563838980,-345.3587485,0.00013698,2]
[332839584,1721563838989,-300.0,0.00013698,2]
[332839585,1721563838999,-300.0,0.00013698,2]
[332839586,1721563839009,-390.15053268,0.00013698,2]
[332839587,1721563839019,-390.15053268,0.00013698,2]
[332839588,1721563839029,-390.15053268,0.00013698,2]
[332839589,1721563839038,-390.15053268,0.00013698,2]
[332839590,1721563839048,-390.15053268,0.00013698,2]
[332839591,1721563839057,-390.15053268,0.00013698,2]
[332839592,1721563839066,-331.12343673,0.00013698,2]
[332839593,1721563839076,-300.0,0.00013698,2]
[332839594,1721563839085,-644.07565466,0.00013698,2]
[332839595,1721563839094,-254.49514374,0.00013698,2]
[332839596,1721563839103,-500.0,0.00013698,2]
[332839597,1721563839113,-500.0,0.00013698,2]
[332839598,1721563839124,-464.66547403,0.00013698,2]
[332839599,1721563839134,-1997.97,0.00013698,2]
[332839600,1721563839143,-1997.97,0.00013698,2]
[332839601,1721563839152,-1997.97,0.00013698,2]
[332839602,1721563839161,-1997.97,0.00013698,2]
[332839603,1721563839170,-1997.97,0.00013698,2]
[332839604,1721563839180,-1997.97,0.00013698,2]
[332839605,1721563839190,-1997.97,0.00013698,2]
[332839606,1721563839199,-1997.97,0.00013698,2]
[332839607,1721563839209,-1997.97,0.00013698,2]
[332839608,1721563839218,-1997.97,0.00013698,2]
[332839609,1721563839227,-1997.97,0.00013698,2]
[332839610,1721563839236,-1997.97,0.00013698,2]
[332839611,1721563839246,-1997.97,0.00013698,2]
[332839612,1721563839256,-1997.97,0.00013698,2]
[332839613,1721563839268,-1997.97,0.00013698,2]
[332839614,1721563839278,-1997.97,0.00013698,2]
[332839615,1721563839288,-1997.97,0.00013698,2]
[332839616,1721563839299,-1997.97,0.00013698,2]
[332839617,1721563839309,-1997.97,0.00013698,2]
[332839618,1721563839319,-1997.97,0.00013698,2]
[332839619,1721563839329,-1997.97,0.00013698,2]
[332839620,1721563839338,-1997.97,0.00013698,2]
[332839621,1721563839347,-1997.97,0.00013698,2]
[332839622,1721563839357,-1998.05255533,0.00013698,2]
[332839623,1721563839366,-500.0,0.00013698,2]
[332839624,1721563839375,-575.57,0.00013698,2]
[332839625,1721563839384,-500.0,0.00013698,2]
[332839626,1721563839393,-500.0,0.00013698,2]
[332839627,1721563839403,-500.0,0.00013698,2]
[332839628,1721563839412,-500.70336209,0.00013698,2]
[332839629,1721563839422,-524.52769654,0.00013698,2]
[332839630,1721563839431,-735.43,0.00013698,2]
[332839631,1721563839440,-500.0,0.00013698,2]
[332839632,1721563839450,-500.0,0.00013698,2]
[332839633,1721563839459,-500.0,0.00013698,2]
[332839634,1721563839468,-602.36606478,0.00013698,2]
[332839635,1721563839477,-500.0,0.00013698,2]
[332839636,1721563839486,-500.0,0.00013698,2]
[332839637,1721563839496,-500.0,0.00013698,2]
[332839638,1721563839505,-500.0,0.00013698,2]
[332839639,1721563839514,-549.02,0.00013698,2]
[332839640,1721563839523,-500.0,0.00013698,2]
[332839641,1721563839532,-500.0,0.00013698,2]
[332839642,1721563839542,-500.0,0.00013698,2]
[332839643,1721563839551,-500.0,0.00013698,2]
[332839644,1721563839560,-500.0,0.00013698,2]
[332839645,1721563839571,-500.0,0.00013698,2]
[332839646,1721563839581,-500.0,0.00013698,2]
[332839647,1721563839590,-500.0,0.00013698,2]
[332839648,1721563839599,-500.0,0.00013698,2]
[332839649,1721563839608,-510.57627377,0.00013698,2]
[332839650,1721563839618,-500.0,0.00013698,2]
[332839651,1721563839626,-511.77010146,0.00013698,2]
[332839652,1721563839635,-1010.55,0.00013698,2]
[332839653,1721563839645,-500.0,0.00013698,2]
[332839654,1721563839658,-508.21,0.00013698,2]
[332839655,1721563839668,-500.0,0.00013698,2]
[332839656,1721563839677,-543.68985196,0.00013698,2]
[332839657,1721563839687,-500.0,0.00013698,2]
[332839658,1721563839696,-360.00000002,0.00013698,2]
[332839659,1721563839706,-500.0,0.00013698,2]
[332839660,1721563839715,-500.0,0.00013698,2]
[332839661,1721563839724,-500.0,0.00013698,2]
[332839662,1721563839733,-151.0,0.00013698,2]
[332839663,1721563839742,-151.0,0.00013698,2]
[332839664,1721563839751,-500.0,0.00013698,2]
[332839665,1721563839760,-500.0,0.00013698,2]
[332839666,1721563839770,-500.0,0.00013698,2]
[332839667,1721563839778,-693.54,0.00013698,2]
[332839668,1721563839787,-643.18344939,0.00013698,2]
[332839669,1721563839796,-500.0,0.00013698,2]
[332839670,1721563839805,-500.0,0.00013698,2]
[332839671,1721563839815,-541.72015589,0.00013698,2]
[332839672,1721563839823,-542.51035399,0.00013698,2]
[332839673,1721563839833,-1365.28,0.00013698,2]
[332839674,1721563839843,-500.0,0.00013698,2]